bitfinex/quotes_SOLUSD_20260203
["timestamp","ask_amount","ask_price","bid_price","bid_amount"]
[1770098201390,4.04884258,103.93,103.9,4.26003212]
[1770098201955,4.04884258,103.93,103.9,13.88426793]
[1770098205360,4.04884258,103.93,103.91,4.26003212]
[1770098211686,13.67400803,103.94,103.91,13.88370871]
[1770098211887,13.67400803,103.94,103.91,4.26003212]
[1770098212284,13.67319667,103.95,103.92,4.07459073]
[1770098212881,17.23684473,103.95,103.92,4.07459073]
[1770098213483,13.67319667,103.95,103.92,4.07459073]
[1770098220199,28.09775849,103.98,103.94,4.07459073]
[1770098220386,38.46181924,104.0,103.93,4.07459073]
[1770098220387,4.05278551,103.96,103.93,4.07459073]
[1770098220713,7.61643357,103.95,103.92,4.07459073]
[1770098221279,4.05278551,103.95,103.92,4.07459073]
[1770098221479,3.56364806,103.95,103.92,4.07459073]
[1770098221697,4.05278551,103.94,103.92,4.07459073]
[1770098222699,4.05278551,103.93,103.9,4.07459073]
[1770098223170,7.61643357,103.93,103.9,4.07459073]
[1770098223903,4.05278551,103.93,103.9,4.07459073]
[1770098224598,4.05278551,103.93,103.9,13.69918724]
[1770098229710,4.05278551,103.93,103.91,4.07459073]
[1770098231488,13.67467577,103.93,103.9,13.69918724]
[1770098232306,4.05278551,103.92,103.89,13.69991341]
[1770098232484,4.05278551,103.92,103.89,4.07459073]
[1770098233589,13.67591255,103.92,103.89,4.07459073]
[1770098233798,13.18515971,103.93,103.9,4.07459073]
[1770098233989,3.56298683,103.92,103.88,4.07459073]
[1770098234193,7.61577234,103.91,103.88,4.07459073]
[1770098236310,7.61577234,103.91,103.88,13.70108032]
[1770098237109,17.23981006,103.91,103.88,4.07459073]
[1770098238501,4.05278551,103.89,103.87,4.07459073]
[1770098239008,7.61577234,103.9,103.87,4.07459073]
[1770098239906,9.62316452,103.92,103.88,7.63757756]
[1770098240207,13.67595003,103.92,103.89,4.07459073]
[1770098241601,17.39090648,103.93,103.9,4.16272606]
[1770098241909,13.82791965,103.93,103.9,4.16272606]
[1770098243221,4.20559029,103.92,103.9,4.16272606]
[1770098246007,13.82856264,103.92,103.9,4.16272606]
[1770098246210,7.76857712,103.91,103.88,4.16272606]
[1770098246909,7.76857712,103.9,103.87,4.16272606]
[1770098249209,17.39337157,103.9,103.87,4.16272606]
[1770098250112,13.83038474,103.9,103.87,4.16272606]
[1770098250495,3.56298683,103.91,103.88,4.16272606]
[1770098250496,4.20559029,103.91,103.88,4.16272606]
[1770098251007,13.82936345,103.91,103.88,4.16272606]
[1770098251412,17.39235028,103.91,103.88,4.16272606]
[1770098251712,13.82936345,103.91,103.88,4.16272606]
[1770098252492,7.76857712,103.9,103.87,4.16272606]
[1770098252694,7.76857712,103.89,103.86,4.16272606]
[1770098252994,7.76857712,103.88,103.86,4.16272606]
[1770098253197,4.20559029,103.88,103.86,4.16272606]
[1770098253913,17.39515796,103.88,103.85,4.16272606]
[1770098254809,17.39515796,103.88,103.84,4.16272606]
[1770098254810,7.76857712,103.87,103.84,4.16272606]
[1770098255512,4.20559029,103.86,103.83,13.79336567]
[1770098255709,4.20559029,103.86,103.84,4.16272606]
[1770098256317,17.39695009,103.86,103.83,4.16272606]
[1770098257195,4.20559029,103.84,103.82,4.16272606]
[1770098257391,7.76857712,103.85,103.82,4.16272606]
[1770098258230,17.39832642,103.85,103.82,4.16272606]
[1770098259106,4.20559029,103.85,103.83,4.16272606]
[1770098259800,17.39740587,103.86,103.83,4.16272606]
[1770098260389,7.76857712,103.85,103.82,4.16272606]
[1770098261210,7.76857712,103.85,103.82,13.79472387]
[1770098261417,4.20559029,103.85,103.83,4.16272606]
[1770098261708,7.76857712,103.85,103.82,4.16272606]
[1770098262093,4.20559029,103.85,103.83,4.16272606]
[1770098262295,13.83441904,103.86,103.83,4.16272606]
[1770098262715,17.39740587,103.86,103.83,4.16272606]
[1770098263818,7.76857712,103.85,103.83,4.16272606]
[1770098264006,7.76857712,103.85,103.82,4.16272606]
[1770098266622,4.20559029,103.82,103.79,0.1]
[1770098266921,7.76857712,103.81,103.79,0.1]
[1770098268235,13.19639275,103.81,103.79,4.26272606]
[1770098268420,17.40198304,103.81,103.79,4.26272606]
[1770098268919,13.83899621,103.81,103.79,4.26272606]
[1770098269323,7.76857712,103.83,103.79,4.26272606]
[1770098269622,12.04384797,103.84,103.8,4.16272606]
[1770098269822,4.20559029,103.83,103.8,4.16272606]
[1770098270206,4.40601931,103.82,103.79,4.26863856]
[1770098270516,4.40601931,103.82,103.79,13.90339345]
[1770098272723,17.60106202,103.82,103.79,4.47961316]
[1770098272903,14.03807519,103.82,103.79,4.47961316]
[1770098273105,9.63156342,103.83,103.8,4.37961316]
[1770098273625,13.81906611,103.83,103.8,4.37961316]
[1770098274619,4.18750269,103.82,103.79,0.1]
[1770098274925,2.8901995,103.79,103.76,0.1]
[1770098275125,7.75048952,103.78,103.76,0.1]
[1770098275423,7.75048952,103.79,103.76,4.47961316]
[1770098275612,4.18750269,103.79,103.76,4.47961316]
[1770098276112,17.38386202,103.81,103.78,4.37961316]
[1770098276522,13.8198816,103.82,103.78,4.37961316]
[1770098276714,13.81988429,103.82,103.79,4.37961316]
[1770098276902,4.18750269,103.81,103.78,4.37961316]
[1770098277103,4.18750269,103.79,103.76,14.11723681]
[1770098277303,4.18750269,103.8,103.76,4.47961316]
[1770098277515,4.18750269,103.8,103.77,14.01625152]
[1770098278433,4.18750269,103.8,103.77,4.37961316]
[1770098279335,13.19629896,103.81,103.78,4.37961316]
[1770098279626,13.82081482,103.81,103.78,4.37961316]
[1770098280806,4.18750269,103.81,103.78,4.37961316]
[1770098281425,2.8901995,103.8,103.77,14.01630284]
[1770098281641,17.38380196,103.81,103.78,4.37961316]
[1770098282621,4.18750269,103.79,103.76,0.1]
[1770098282824,4.18750269,103.79,103.75,0.1]
[1770098282825,4.18750269,103.76,103.75,0.1]
[1770098283129,7.75048952,103.76,103.73,14.01994982]
[1770098283310,4.18750269,103.78,103.75,14.01813433]
[1770098283511,4.09127014,103.78,103.75,14.01813433]
[1770098283740,13.72721567,103.78,103.75,4.37961316]
[1770098284318,17.2902025,103.78,103.75,4.37961316]
[1770098284540,17.47352032,103.79,103.76,4.37961316]
[1770098285211,17.47352032,103.79,103.75,4.37961316]
[1770098285416,21.66102301,103.79,103.75,4.37961316]
[1770098286534,21.67098522,103.79,103.75,4.37961316]
[1770098286928,24.0852718,103.8,103.77,4.37961316]
[1770098286929,13.82187143,103.8,103.77,4.37961316]
[1770098287238,4.18750269,103.8,103.77,4.37961316]
[1770098289120,13.82162608,103.8,103.77,4.37961316]
[1770098289319,13.82162608,103.8,103.76,4.37961316]
[1770098289320,4.18750269,103.79,103.76,4.37961316]
[1770098289841,17.39457512,103.8,103.77,4.37961316]
[1770098290217,4.18750269,103.79,103.75,9.63843046]
[1770098290421,4.18750269,103.79,103.76,4.37961316]
[1770098290620,4.18750269,103.79,103.76,14.01718434]
[1770098292037,4.18750269,103.79,103.76,4.37961316]
[1770098292220,7.76045173,103.79,103.76,4.37961316]
[1770098293039,4.18750269,103.78,103.75,4.37961316]
[1770098293744,7.76045173,103.78,103.75,4.37961316]
[1770098294240,13.82419923,103.77,103.75,4.37961316]
[1770098294450,17.39714827,103.77,103.74,4.37961316]
[1770098296323,13.20964558,103.77,103.74,4.37961316]
[1770098296720,17.39667974,103.78,103.74,14.019075]
[1770098296942,17.39568164,103.79,103.75,4.37961316]
[1770098297622,3.57294904,103.78,103.75,4.37961316]
[1770098298518,17.39630956,103.78,103.75,4.37961316]
[1770098300236,4.18164988,103.76,103.73,4.35791051]
[1770098300455,7.75459892,103.76,103.73,4.35791051]
[1770098300621,17.39265801,103.76,103.73,4.35791051]
[1770098300943,17.39265801,103.76,103.72,4.67752451]
[1770098300944,7.75459892,103.75,103.72,4.67752451]
[1770098301331,13.81970897,103.76,103.73,4.35791051]
[1770098301524,17.39265801,103.76,103.73,4.35791051]
[1770098303232,3.57294904,103.75,103.73,4.35791051]
[1770098304533,13.81579184,103.8,103.75,4.35791051]
[1770098304729,4.18164988,103.79,103.76,7.93085955]
[1770098305443,13.81684,103.79,103.76,7.93085955]
[1770098305649,13.81684,103.79,103.76,4.35791051]
[1770098306051,13.81603964,103.8,103.77,4.35791051]
[1770098306348,9.63341805,103.81,103.79,4.35791051]
[1770098306539,17.38801697,103.81,103.77,4.35791051]
[1770098306747,13.81506793,103.81,103.78,4.35791051]
[1770098307833,17.38801697,103.81,103.78,4.35791051]
[1770098308029,4.18164988,103.8,103.77,4.35791051]
[1770098308643,17.38801697,103.81,103.77,4.35791051]
[1770098309446,7.75459892,103.8,103.77,4.35791051]
[1770098310133,4.18164988,103.8,103.77,4.35791051]
[1770098310340,13.81506793,103.81,103.78,4.35791051]
[1770098311756,13.81420502,103.82,103.79,4.35791051]
[1770098312437,4.18164988,103.81,103.78,4.35791051]
[1770098314357,13.81474879,103.81,103.78,4.35791051]
[1770098315660,4.18164988,103.81,103.78,13.99364097]
[1770098316034,4.18164988,103.81,103.78,17.56659001]
[1770098316838,13.81510153,103.81,103.78,4.35791051]
[1770098318142,13.81510153,103.81,103.78,7.93085955]
[1770098318844,4.18164988,103.81,103.78,17.56657056]
[1770098320461,13.81464292,103.81,103.78,7.93085955]
[1770098320646,4.18164988,103.8,103.77,13.99409113]
[1770098320846,4.18164988,103.8,103.78,4.35791051]
[1770098321566,13.81464292,103.81,103.78,4.35791051]
[1770098324970,37.89413353,103.82,103.79,4.35791051]
[1770098325645,4.18164988,103.81,103.79,4.35791051]
[1770098326249,33.71248365,103.82,103.79,4.35791051]
[1770098326250,37.89413353,103.82,103.79,4.35791051]
[1770098326465,3.57294904,103.86,103.82,4.35791051]
[1770098326667,24.07279415,103.86,103.82,7.79045025]
[1770098326974,4.18164988,103.85,103.82,4.21750121]
[1770098327962,4.18164988,103.85,103.82,7.79045025]
[1770098328772,4.18164988,103.85,103.82,4.21750121]
[1770098329071,7.75459892,103.83,103.8,4.35791051]
[1770098329273,4.18164988,103.83,103.8,4.35791051]
[1770098331060,9.63205548,103.82,103.8,4.35791051]
[1770098331573,31.74653923,103.84,103.8,4.35791051]
[1770098331774,28.17359019,103.84,103.81,4.18150337]
[1770098332157,4.09808942,103.83,103.8,7.75445241]
[1770098332475,4.09808942,103.83,103.8,4.18150337]
[1770098334674,13.72928846,103.83,103.8,4.18150337]
[1770098337182,13.72928846,103.83,103.8,7.75445241]
[1770098338781,13.72878352,103.84,103.81,4.18150337]
[1770098341689,4.09808942,103.81,103.78,4.18150337]
[1770098341891,4.09808942,103.81,103.79,4.18150337]
[1770098342684,13.73090713,103.82,103.79,4.18150337]
[1770098343189,13.72959232,103.83,103.8,4.18150337]
[1770098343483,9.6315029,103.83,103.81,4.18150337]
[1770098344984,13.72875352,103.84,103.81,4.18150337]
[1770098347389,4.09808942,103.83,103.8,7.75445241]
[1770098347687,4.09808942,103.83,103.81,4.18150337]
[1770098349192,4.09808942,103.83,103.8,4.18150337]
[1770098349392,13.72984605,103.83,103.8,4.18150337]
[1770098349697,4.09808942,103.81,103.78,4.18150337]
[1770098349875,4.09808942,103.81,103.78,7.75063634]
[1770098350076,4.09808942,103.81,103.78,4.18150337]
[1770098351390,13.73162334,103.81,103.78,4.18150337]
[1770098354387,13.73162334,103.81,103.79,4.18150337]
[1770098354388,4.09808942,103.81,103.79,4.18150337]
[1770098355090,13.73110129,103.81,103.79,4.18150337]
[1770098355389,13.73065071,103.82,103.79,4.18150337]
[1770098358493,4.09808942,103.81,103.79,4.18150337]
[1770098359095,4.09808942,103.81,103.78,4.18150337]
[1770098359476,13.73120255,103.81,103.78,4.18150337]
[1770098361579,3.56913297,103.8,103.78,4.18150337]
[1770098362496,7.65361443,103.8,103.78,4.18150337]
[1770098362691,4.08448146,103.78,103.74,14.11923603]
[1770098362903,3.56913297,103.77,103.75,4.48019895]
[1770098363280,7.65361443,103.78,103.75,4.48019895]
[1770098363479,3.56913297,103.8,103.77,4.48019895]
[1770098363680,3.56913297,103.8,103.76,4.48019895]
[1770098363681,3.56913297,103.78,103.76,4.48019895]
[1770098367499,3.56913297,103.78,103.77,4.48019895]
[1770098367700,3.56913297,103.78,103.76,9.63759215]
[1770098367900,3.56913297,103.78,103.75,9.63804954]
[1770098369099,3.56913297,103.78,103.74,33.7377389]
[1770098369302,7.65361443,103.78,103.74,9.63948332]
[1770098369808,7.65361443,103.78,103.75,4.48019895]
[1770098371302,7.65361443,103.78,103.76,4.48019895]
[1770098372685,3.56913297,103.78,103.76,4.48019895]
[1770098373710,7.65361443,103.77,103.74,14.11919549]
[1770098373913,7.65361443,103.77,103.75,4.48019895]
[1770098374087,3.56913297,103.76,103.75,4.48019895]
[1770098375705,3.56913297,103.78,103.76,4.48019895]
[1770098378612,17.28907031,103.79,103.76,4.48019895]
[1770098380614,17.28964505,103.78,103.75,4.48019895]
[1770098391334,4.14237307,103.81,103.76,4.05929322]
[1770098391629,3.56913297,103.8,103.76,4.05929322]
[1770098392002,7.71150604,103.8,103.76,4.05929322]
[1770098392703,4.14237307,103.8,103.76,4.05929322]
[1770098393405,4.14237307,103.8,103.77,13.69598976]
[1770098393803,4.14237307,103.8,103.78,4.05929322]
[1770098394098,17.34448937,103.81,103.78,4.05929322]
[1770098397328,3.56913297,103.8,103.78,4.05929322]
[1770098398924,17.34448937,103.81,103.78,4.05929322]
[1770098399824,7.71150604,103.8,103.78,4.05929322]
[1770098400030,7.71150604,103.8,103.77,13.69598976]
[1770098400234,13.7753564,103.81,103.78,4.05929322]
[1770098400414,17.34448937,103.81,103.78,4.05929322]
[1770098400929,7.71150604,103.81,103.78,4.05929322]
[1770098401231,17.3445467,103.81,103.78,4.05929322]
[1770098404732,7.71150604,103.81,103.78,13.69488377]
[1770098405236,17.34454895,103.81,103.78,4.05929322]
[1770098406612,7.71150604,103.81,103.79,4.05929322]
[1770098406815,17.34417666,103.82,103.79,4.05929322]
[1770098407021,7.71150604,103.83,103.8,4.05929322]
[1770098407230,4.14237307,103.83,103.8,4.05929322]
[1770098408137,33.7049677,103.85,103.8,4.05929322]
[1770098408356,13.19891965,103.85,103.81,4.05929322]
[1770098408544,13.19775717,103.85,103.81,4.05929322]
[1770098408836,3.56797049,103.84,103.81,4.05929322]
[1770098409035,3.56797049,103.85,103.81,9.63275579]
[1770098409239,3.56797049,103.85,103.82,4.05929322]
[1770098410125,7.71034356,103.84,103.81,4.05929322]
[1770098410327,3.56797049,103.82,103.8,4.05929322]
[1770098412329,7.71034356,103.82,103.8,4.05929322]
[1770098412642,7.71034356,103.82,103.79,13.69377489]
[1770098412826,7.71034356,103.82,103.8,4.05929322]
[1770098413022,7.71034356,103.82,103.79,13.69377489]
[1770098413335,3.56797049,103.81,103.79,4.05929322]
[1770098413848,7.71034356,103.81,103.79,4.05929322]
[1770098414841,3.56797049,103.8,103.78,13.69465881]
[1770098415950,13.77450361,103.82,103.79,4.05929322]
[1770098416130,7.71034356,103.81,103.78,4.05929322]
[1770098419248,7.71034356,103.82,103.79,13.69413279]
[1770098419546,7.71034356,103.85,103.81,4.05929322]
[1770098419730,4.14237307,103.83,103.81,4.05929322]
[1770098419940,7.71034356,103.84,103.8,4.34361636]
[1770098420340,7.68101782,103.82,103.8,4.05929322]
[1770098421333,7.68101782,103.82,103.79,33.72193851]
[1770098421334,7.68101782,103.81,103.79,4.1553375]
[1770098421738,7.68101782,103.81,103.78,13.79061076]
[1770098422134,4.11304733,103.84,103.81,4.1553375]
[1770098422439,7.68101782,103.83,103.81,4.1553375]
[1770098423155,7.68101782,103.83,103.8,13.78924661]
[1770098426149,4.11304733,103.83,103.81,4.1553375]
[1770098426451,3.56797049,103.84,103.81,4.1553375]
[1770098427352,7.68101782,103.84,103.81,13.7877803]
[1770098428154,7.68101782,103.84,103.82,4.1553375]
[1770098428561,4.11304733,103.84,103.82,4.1553375]
[1770098428941,4.11304733,103.84,103.81,4.1553375]
[1770098429249,4.11304733,103.84,103.81,13.78786033]
[1770098429450,7.68101782,103.84,103.81,13.78786033]
[1770098429636,17.31130406,103.84,103.81,4.1553375]
[1770098430045,4.11304733,103.81,103.8,9.63316637]
[1770098430259,7.68101782,103.82,103.8,9.63316637]
[1770098431058,4.11304733,103.82,103.8,9.63316637]
[1770098431645,4.11304733,103.81,103.79,4.1553375]
[1770098431956,7.68101782,103.81,103.79,4.1553375]
[1770098432158,4.11304733,103.81,103.79,13.7900838]
[1770098433644,4.11304733,103.81,103.79,4.1553375]
[1770098436060,4.11304733,103.82,103.79,13.78961143]
[1770098436958,4.11304733,103.83,103.8,4.1553375]
[1770098437147,7.68101782,103.83,103.8,4.1553375]
[1770098438062,7.68101782,103.83,103.8,13.78891358]
[1770098440671,4.11304733,103.82,103.8,13.78891358]
[1770098441073,7.68101782,103.83,103.8,13.78891358]
[1770098442373,4.11304733,103.83,103.8,13.78891358]
[1770098442575,17.31179939,103.84,103.81,4.1553375]
[1770098446072,4.11304733,103.83,103.81,4.1553375]
[1770098447078,17.31179939,103.84,103.81,4.1553375]
[1770098448675,4.11304733,103.83,103.81,4.1553375]
[1770098448976,7.68101782,103.83,103.8,13.78891358]
[1770098449474,4.11304733,103.83,103.81,4.1553375]
[1770098451882,7.68101782,103.83,103.8,13.85996053]
[1770098452054,4.11304733,103.83,103.8,13.85996053]
[1770098452258,7.68101782,103.83,103.8,13.85996053]
[1770098453684,4.00155096,103.81,103.79,13.86092179]
[1770098454174,4.00155096,103.81,103.79,4.22655791]
[1770098454473,4.00155096,103.8,103.78,13.86183904]
[1770098458682,7.56952145,103.83,103.8,4.22655791]
[1770098459092,4.00155096,103.83,103.8,4.22655791]
[1770098460878,4.00155096,103.82,103.79,13.86070288]
[1770098461272,4.00155096,103.82,103.8,4.22655791]
[1770098461482,4.00155096,103.82,103.8,13.86046244]
[1770098461678,4.00155096,103.82,103.79,13.86091314]
[1770098462785,4.00155096,103.81,103.78,13.86173726]
[1770098463168,4.00155096,103.8,103.78,13.86173726]
[1770098464184,4.00155096,103.81,103.78,13.86173726]
[1770098464779,3.56797049,103.81,103.78,13.86173726]
[1770098465093,3.56797049,103.81,103.77,0.28432314]
[1770098465094,7.56952145,103.8,103.77,13.86275561]
[1770098465265,4.00155096,103.8,103.77,13.86275561]
[1770098466687,4.00155096,103.79,103.77,13.8632538]
[1770098467666,3.56797049,103.8,103.77,13.8632538]
[1770098467667,4.00155096,103.8,103.77,13.8632538]
[1770098470690,4.00155096,103.8,103.78,4.22655791]
[1770098474296,4.00155096,103.8,103.78,13.86192022]
[1770098474798,4.00155096,103.8,103.78,9.63536231]
[1770098475292,4.00155096,103.8,103.78,13.86192022]
[1770098477398,4.00155096,103.8,103.77,37.9549958]
[1770098477597,4.00155096,103.8,103.77,13.86325445]
[1770098478183,4.00155096,103.8,103.77,9.63669654]
[1770098478381,4.00155096,103.8,103.78,4.22655791]
[1770098478987,4.00155096,103.81,103.78,4.22655791]
[1770098479379,7.57288801,103.81,103.78,13.86197544]
[1770098480085,4.07940749,103.8,103.78,9.63541753]
[1770098480495,4.07940749,103.8,103.78,13.9490801]
[1770098481700,4.07940749,103.8,103.77,38.04210046]
[1770098482099,4.07940749,103.8,103.78,4.31366257]
[1770098484710,4.07940749,103.81,103.78,13.94858834]
[1770098488621,4.07940749,103.81,103.79,13.94841276]
[1770098488991,4.07940749,103.82,103.79,17.51974981]
[1770098489205,4.07940749,103.82,103.8,4.31366257]
[1770098489406,10.23589681,103.85,103.82,4.31366257]
[1770098489798,6.15648932,103.85,103.83,4.31366257]
[1770098490000,6.15648932,103.85,103.83,7.88499962]
[1770098490299,10.23589681,103.85,103.82,7.88499962]
[1770098490703,10.23589681,103.85,103.82,17.51650358]
[1770098492005,6.15648932,103.85,103.83,7.88499962]
[1770098492409,6.15648932,103.85,103.84,4.31366257]
[1770098492717,4.07940749,103.87,103.84,7.88499962]
[1770098493213,4.07940749,103.87,103.85,4.31366257]
[1770098494407,4.07940749,103.85,103.82,9.63161211]
[1770098494607,4.07940749,103.82,103.79,4.31366257]
[1770098494911,33.69608816,103.87,103.78,24.76656336]
[1770098494912,7.65074454,103.8,103.78,24.76656336]
[1770098495116,4.07940749,103.79,103.78,15.13122804]
[1770098495314,7.65074454,103.79,103.78,15.13122804]
[1770098495522,4.07940749,103.79,103.78,15.13122804]
[1770098495713,7.65074454,103.79,103.78,15.13122804]
[1770098497105,7.65074454,103.8,103.78,24.76699601]
[1770098497399,7.65074454,103.8,103.78,15.13122804]
[1770098499017,7.65074454,103.79,103.78,15.13122804]
[1770098499706,7.65074454,103.79,103.77,9.63624765]
[1770098499904,7.65074454,103.79,103.76,13.95103005]
[1770098500313,4.07940749,103.77,103.75,9.63855421]
[1770098500502,7.65074454,103.77,103.74,4.31366257]
[1770098500902,7.65074454,103.77,103.74,13.95266427]
[1770098501119,3.57133705,103.76,103.74,13.95266427]
[1770098501798,7.65074454,103.77,103.74,13.95266427]
[1770098503021,7.65074454,103.77,103.72,27.99232886]
[1770098503022,4.07940749,103.76,103.73,13.95407517]
[1770098503207,3.57133705,103.76,103.74,4.31366257]
[1770098505123,7.65074454,103.76,103.73,9.6404126]
[1770098505322,7.65074454,103.76,103.73,13.95407517]
[1770098505617,7.65074454,103.76,103.72,9.96066249]
[1770098505618,7.65074454,103.74,103.72,9.96066249]
[1770098506411,7.65074454,103.74,103.72,0.319614]
[1770098506924,7.65074454,103.75,103.72,14.27388112]
[1770098507132,3.57133705,103.76,103.73,4.31366257]
[1770098507322,17.28791802,103.77,103.73,4.31366257]
[1770098507631,4.07940749,103.77,103.74,4.31366257]
[1770098507829,4.07940749,103.78,103.75,4.31366257]
[1770098508006,9.63528516,103.79,103.76,4.31366257]
[1770098508007,4.07940749,103.79,103.76,4.31366257]
[1770098509219,4.07940749,103.79,103.76,13.95077971]
[1770098509538,4.07940749,103.81,103.78,4.31366257]
[1770098509733,4.07940749,103.8,103.77,8.16932276]
[1770098511633,4.07940749,103.8,103.77,13.95002506]
[1770098512634,4.07940749,103.8,103.77,17.52136211]
[1770098513638,4.00924909,103.78,103.75,4.20413633]
[1770098514222,4.00924909,103.78,103.75,13.84221873]
[1770098514718,7.58058614,103.78,103.75,9.6380824]
[1770098514922,7.58058614,103.78,103.75,13.84221873]
[1770098515637,7.58058614,103.79,103.76,4.20413633]
[1770098515841,4.00924909,103.78,103.75,13.84221873]
[1770098516542,4.00924909,103.77,103.75,9.6380824]
[1770098518224,7.58058614,103.77,103.75,9.6380824]
[1770098522234,7.58058614,103.77,103.74,13.84327684]
[1770098522442,7.47510747,103.77,103.74,13.84327684]
[1770098523460,3.57133705,103.75,103.72,14.16445918]
[1770098524738,7.58058614,103.76,103.73,4.20413633]
[1770098525837,4.00924909,103.75,103.72,38.26781436]
[1770098527558,4.00924909,103.75,103.72,14.16445918]
[1770098527739,4.00924909,103.73,103.72,0.319614]
[1770098528477,7.58058614,103.75,103.72,14.16494569]
[1770098528628,7.58435084,103.75,103.72,14.16494569]
[1770098530358,4.00924909,103.74,103.72,9.96080936]
[1770098531633,4.00924909,103.74,103.72,14.16494569]
[1770098531835,4.00924909,103.74,103.72,9.96080936]
[1770098532242,4.00924909,103.74,103.72,0.319614]
[1770098532651,7.58464114,103.74,103.72,0.319614]
[1770098532843,7.58464114,103.74,103.72,9.96085479]
[1770098533352,7.58464114,103.76,103.73,4.20413633]
[1770098533563,4.00924909,103.75,103.72,14.16499112]
[1770098533731,7.58464114,103.77,103.74,4.20413633]
[1770098533932,7.58464114,103.8,103.77,4.20413633]
[1770098534344,4.00924909,103.8,103.77,4.20413633]
[1770098534656,4.00924909,103.83,103.8,13.83770168]
[1770098534862,4.00924909,103.83,103.8,4.20413633]
[1770098535173,7.58464114,103.83,103.79,17.41390951]
[1770098535338,4.00924909,103.82,103.79,13.83851746]
[1770098535738,4.00924909,103.82,103.79,17.41390951]
[1770098537166,4.00924909,103.82,103.79,13.83851746]
[1770098537470,4.00924909,103.81,103.78,9.63544029]
[1770098537772,4.00924909,103.81,103.78,17.41496867]
[1770098537943,4.00924909,103.82,103.79,13.83863648]
[1770098538445,4.00924909,103.83,103.79,17.41402853]
[1770098539668,4.00924909,103.83,103.8,4.20413633]
[1770098539867,4.00924909,103.83,103.8,7.77952838]
[1770098540569,4.00924909,103.83,103.8,17.41300626]
[1770098541280,4.00924909,103.83,103.8,13.83761421]
[1770098541440,4.00924909,103.83,103.8,4.20413633]
[1770098541777,4.00924909,103.83,103.8,13.83798709]
[1770098543066,4.00924909,103.83,103.8,17.41337914]
[1770098545687,4.08245175,103.82,103.79,17.27406828]
[1770098546477,4.08245175,103.82,103.79,13.69867623]
[1770098547186,4.08245175,103.81,103.78,3.57539205]
[1770098547366,4.08245175,103.81,103.77,17.56021796]
[1770098547768,7.6578438,103.81,103.77,17.56021796]
[1770098547989,4.08245175,103.8,103.77,17.41805639]
[1770098548669,4.08245175,103.81,103.78,17.27532119]
[1770098549594,4.08245175,103.82,103.79,7.63967962]
[1770098551566,4.08245175,103.82,103.79,17.27427112]
[1770098551978,13.71311915,103.84,103.81,4.06428757]
[1770098552269,4.08245175,103.85,103.82,4.06428757]
[1770098552790,4.08245175,103.85,103.82,7.63967962]
[1770098553295,4.08245175,103.85,103.82,17.27127976]
[1770098554273,4.08245175,103.85,103.82,13.69588771]
[1770098555398,4.08245175,103.85,103.82,17.27127976]
[1770098556577,4.08245175,103.87,103.84,4.06428757]
[1770098556782,50.8255974,103.89,103.85,7.63967962]
[1770098556783,4.08245175,103.89,103.85,7.63967962]
[1770098556977,4.08245175,103.88,103.73,38.55852476]
[1770098557315,3.57539205,103.76,103.72,13.53590019]
[1770098557517,3.57539205,103.74,103.72,0.319614]
[1770098557868,7.6578438,103.75,103.72,0.319614]
[1770098558178,17.29648614,103.75,103.72,0.319614]
[1770098558502,4.08245175,103.75,103.72,9.960844]
[1770098558683,17.29641799,103.75,103.72,0.319614]
[1770098559090,3.57539205,103.74,103.72,27.079614]
[1770098559281,17.29641799,103.75,103.72,0.319614]
[1770098559484,17.29641799,103.75,103.73,26.76]
[1770098559876,3.57539205,103.74,103.73,26.76]
[1770098560466,8.93933019,103.74,103.73,20.47588198]
[1770098560690,8.93933019,103.74,103.73,14.19898778]
[1770098561021,13.72029037,103.76,103.73,14.19898778]
[1770098561295,13.02178194,103.76,103.73,26.17145724]
[1770098562592,13.02178194,103.81,103.77,2.33157116]
[1770098562793,4.08245175,103.8,103.78,26.76]
[1770098564172,13.71655612,103.8,103.78,26.76]
[1770098565005,4.08245175,103.78,103.76,26.76]
[1770098565186,13.02178194,103.78,103.76,26.76]
[1770098565391,4.08245175,103.78,103.76,26.76]
[1770098567805,4.08245175,103.79,103.76,26.76]
[1770098567991,4.08245175,103.79,103.75,20.48167742]
[1770098568292,4.08245175,103.79,103.76,26.76]
[1770098568605,13.02178194,103.79,103.76,26.76]
[1770098569118,4.08245175,103.78,103.76,26.76]
[1770098570288,12.6355198,103.79,103.76,26.76]
[1770098570493,12.6355198,103.79,103.76,36.39724524]
[1770098571012,3.69618961,103.79,103.76,36.39724524]
[1770098572196,12.6355198,103.79,103.76,36.39724524]
[1770098573523,22.27068657,103.79,103.76,26.76]
[1770098573709,22.27068657,103.79,103.76,36.39762198]
[1770098573710,12.6355198,103.79,103.76,36.39762198]
[1770098574794,3.68045404,103.77,103.76,19.20589114]
[1770098575194,12.61978423,103.78,103.76,19.20589114]
[1770098576812,12.61978423,103.78,103.76,28.84348221]
[1770098577008,12.61978423,103.79,103.76,32.54687298]
[1770098577821,16.89505508,103.82,103.77,3.70339077]
[1770098578120,8.93933019,103.81,103.78,3.70339077]
[1770098578607,12.61978423,103.82,103.79,13.33810258]
[1770098578791,22.25193792,103.82,103.79,3.70339077]